Workbook

Sheet padomi
A1: PADOMI PAR VEIDNI
A2: Vai pastāv vienkāršs veids, kā pāriet no kopsavilkuma lapas Izdevumu tendences uz detalizētu mēnešu izdevumu lapām un pretēji?
A3: Lai ātri pārietu uz noteikta mēneša izdevumiem, noklikšķiniet uz saistītās navigācijas saites virs diagrammas, piemēram, navigācijas saites Jan šūnā B2. Lai atgrieztos darblapā Izdevumu tendences, noklikšķiniet uz navigācijas saites Kopsavilkums šūnā D1.
A4: Lai atgrieztos šajā padomu darblapā, kopsavilkuma darblapā atlasiet šūnu N2. Jebkura mēneša darblapā atlasiet šūnu E1.
A5: Kā izdevumu kopsavilkumā pievienot jaunu izdevumu veidu vai jaunus ikmēneša izdevumus?
A6: Izmaksu kopsavilkums zem diagrammas un katra mēneša detalizētais izdevumu skats ir Excel tabulas. Lai jebkurai Excel tabulai pievienotu jaunu rindu, veiciet kādu no tālāk aprakstītajām darbībām.
A7: =ROW(A1)&". Ja tabulā nav kopsummas rindas, sāciet rakstīt zem tabulas, un tā tiks automātiski izvērsta, kad nospiedīsit taustiņu Enter vai tabulēšanas taustiņu." -> 1. Ja tabulā nav kopsummas rindas, sāciet rakstīt zem tabulas, un tā tiks automātiski izvērsta, kad nospiedīsit taustiņu Enter vai tabulēšanas taustiņu.
A8: =ROW(A2)&". Novietojiet šūnas rādītāju pēdējā šūnā virs kopsummas rindas, piemēram, pēdējo izdevumu kopsummā, un pēc tam nospiediet tabulēšanas taustiņu." -> 2. Novietojiet šūnas rādītāju pēdējā šūnā virs kopsummas rindas, piemēram, pēdējo izdevumu kopsummā, un pēc tam nospiediet tabulēšanas taustiņu.
A9: =ROW(A3)&". Ar peles labo pogu noklikšķiniet tabulā un uznirstošajā izvēlnē, norādiet uz Ievietot un pēc tam noklikšķiniet uz Tabulas rindas augstāk vai Tabulas rindas zemāk." -> 3. Ar peles labo pogu noklikšķiniet tabulā un uznirstošajā izvēlnē, norādiet uz Ievietot un pēc tam noklikšķiniet uz Tabulas rindas augstāk vai Tabulas rindas zemāk.
A10: =ROW(A4)&". Tabulas apakšējā labajā stūrī novietojiet peli uz tabulas lielummaiņas tura un velciet uz leju, lai palielinātu pieejamo tabulas rindu skaitu." -> 4. Tabulas apakšējā labajā stūrī novietojiet peli uz tabulas lielummaiņas tura un velciet uz leju, lai palielinātu pieejamo tabulas rindu skaitu.
A11: Ievadiet izdevumus darblapā kopsavilkums tabulas Izdevumu_kopsavilkums kolonnā Izdevumi.
A12: Pievienojiet katra izdevumu veida izdevumu summu atbilstošā mēneša darblapā.
A13: Piemērs. Izdevumi_1 ir bijuši no janvāra līdz jūnijam un decembrī.
A14: =ROW(A1)&". Vērtība Izdevumi_1 tiek ievietota kopsavilkuma darblapā tabulas Izdevumu_kopsavilkums sadaļā Izdevumi (kā izdevumu tipa virsraksts)" -> 1. Vērtība Izdevumi_1 tiek ievietota kopsavilkuma darblapā tabulas Izdevumu_kopsavilkums sadaļā Izdevumi (kā izdevumu tipa virsraksts)
A15: =ROW(A2)&". Katrā mēnesī, kad rodas izdevumi, ievadiet izdevumu summu atbilstošā mēneša darblapā." -> 2. Katrā mēnesī, kad rodas izdevumi, ievadiet izdevumu summu atbilstošā mēneša darblapā.
A16: =ROW(A3)&". Izdevums tips no darblapas Izdevumu_kopsavilkums izveido kategoriju sarakstu kolonnai Kategorija katra mēneša darblapā." -> 3. Izdevums tips no darblapas Izdevumu_kopsavilkums izveido kategoriju sarakstu kolonnai Kategorija katra mēneša darblapā.
A17: =ROW(A4)&". Izmantojiet kategoriju sarakstu kolonnā Kategorija, lai atlasītu atbilstošo izdevumu veidu ievadītajai izdevumu summai" -> 4. Izmantojiet kategoriju sarakstu kolonnā Kategorija, lai atlasītu atbilstošo izdevumu veidu ievadītajai izdevumu summai
A18: =ROW(A5)&". Lai kādam mēnesim pievienotu jaunus izdevumus, pievienojiet jaunu rindu tabulai Izdevumu_kopsavilkums kopsavilkuma darblapā, pēc tam ievadiet atbilstošo izdevumu detalizēto informāciju tā mēneša darblapā, uz kuru tie attiecas." -> 5. Lai kādam mēnesim pievienotu jaunus izdevumus, pievienojiet jaunu rindu tabulai Izdevumu_kopsavilkums kopsavilkuma darblapā, pēc tam ievadiet atbilstošo izdevumu detalizēto informāciju tā mēneša darblapā, uz kuru tie attiecas.

Sheet kopsavilkums
A1: IZDEVUMU TENDENCES
B2: Jan | C2: Feb | D2: Mar | E2: Apr | F2: Mai | G2: Jūn | H2: Jūl | I2: Aug | J2: Sep | K2: Okt | L2: Nov | M2: Dec | N2: Padomi
A4: Izdevumi | B4: Jan | C4: Feb | D4: Mar | E4: Apr | F4: Mai | G4: Jūn | H4: Jūl | I4: Aug | J4: Sep | K4: Okt | L4: Nov | M4: Dec | N4: Kopsumma | O4: Tendence
A5: Izdevumi_1 | B5: =SUMIFS(Izd_jan[Summa],Izd_jan[Kategorija],Izdevumu_kopsavilkums[Izdevumi]) -> 33.00 | C5: =SUMIFS(Izd_feb[Summa],Izd_feb[Kategorija],Izdevumu_kopsavilkums[Izdevumi]) -> 375.00 | D5: =SUMIFS(Izd_mar[Summa],Izd_mar[Kategorija],Izdevumu_kopsavilkums[Izdevumi]) -> 33.00 | E5: =SUMIFS(Izd_apr[Summa],Izd_apr[Kategorija],Izdevumu_kopsavilkums[Izdevumi]) -> 45.00 | F5: =SUMIFS(Izd_mai[Summa],Izd_mai[Kategorija],Izdevumu_kopsavilkums[Izdevumi]) -> 375.00 | G5: =SUMIFS(Izd_jūn[Summa],Izd_jūn[Kategorija],Izdevumu_kopsavilkums[Izdevumi]) -> 201.00 | H5: =SUMIFS(Izd_jūl[Summa],Izd_jūl[Kategorija],Izdevumu_kopsavilkums[Izdevumi]) -> 0.00 | I5: =SUMIFS(Izd_aug[Summa],Izd_aug[Kategorija],Izdevumu_kopsavilkums[Izdevumi]) -> 0.00 | J5: =SUMIFS(Izd_sep[Summa],Izd_sep[Kategorija],Izdevumu_kopsavilkums[Izdevumi]) -> 0.00 | K5: =SUMIFS(Izd_okt[Summa],Izd_okt[Kategorija],Izdevumu_kopsavilkums[Izdevumi]) -> 0.00 | L5: =SUMIFS(Izd_nov[Summa],Izd_nov[Kategorija],Izdevumu_kopsavilkums[Izdevumi]) -> 0.00 | M5: =SUMIFS(Izd_dec[Summa],Izd_dec[Kategorija],Izdevumu_kopsavilkums[Izdevumi]) -> 201.00 | N5: =SUM(Izdevumu_kopsavilkums[[#This Row],[Jan]:[Dec]]) -> 1,263.00
A6: Izdevumi_2 | B6: =SUMIFS(Izd_jan[Summa],Izd_jan[Kategorija],Izdevumu_kopsavilkums[Izdevumi]) -> 238.00 | C6: =SUMIFS(Izd_feb[Summa],Izd_feb[Kategorija],Izdevumu_kopsavilkums[Izdevumi]) -> 238.00 | D6: =SUMIFS(Izd_mar[Summa],Izd_mar[Kategorija],Izdevumu_kopsavilkums[Izdevumi]) -> 238.00 | E6: =SUMIFS(Izd_apr[Summa],Izd_apr[Kategorija],Izdevumu_kopsavilkums[Izdevumi]) -> 123.00 | F6: =SUMIFS(Izd_mai[Summa],Izd_mai[Kategorija],Izdevumu_kopsavilkums[Izdevumi]) -> 111.00 | G6: =SUMIFS(Izd_jūn[Summa],Izd_jūn[Kategorija],Izdevumu_kopsavilkums[Izdevumi]) -> 98.00 | H6: =SUMIFS(Izd_jūl[Summa],Izd_jūl[Kategorija],Izdevumu_kopsavilkums[Izdevumi]) -> 0.00 | I6: =SUMIFS(Izd_aug[Summa],Izd_aug[Kategorija],Izdevumu_kopsavilkums[Izdevumi]) -> 0.00 | J6: =SUMIFS(Izd_sep[Summa],Izd_sep[Kategorija],Izdevumu_kopsavilkums[Izdevumi]) -> 0.00 | K6: =SUMIFS(Izd_okt[Summa],Izd_okt[Kategorija],Izdevumu_kopsavilkums[Izdevumi]) -> 0.00 | L6: =SUMIFS(Izd_nov[Summa],Izd_nov[Kategorija],Izdevumu_kopsavilkums[Izdevumi]) -> 0.00 | M6: =SUMIFS(Izd_dec[Summa],Izd_dec[Kategorija],Izdevumu_kopsavilkums[Izdevumi]) -> 440.00 | N6: =SUM(Izdevumu_kopsavilkums[[#This Row],[Jan]:[Dec]]) -> 1,486.00
A7: Izdevumi_3 | B7: =SUMIFS(Izd_jan[Summa],Izd_jan[Kategorija],Izdevumu_kopsavilkums[Izdevumi]) -> 110.00 | C7: =SUMIFS(Izd_feb[Summa],Izd_feb[Kategorija],Izdevumu_kopsavilkums[Izdevumi]) -> 110.00 | D7: =SUMIFS(Izd_mar[Summa],Izd_mar[Kategorija],Izdevumu_kopsavilkums[Izdevumi]) -> 110.00 | E7: =SUMIFS(Izd_apr[Summa],Izd_apr[Kategorija],Izdevumu_kopsavilkums[Izdevumi]) -> 125.00 | F7: =SUMIFS(Izd_mai[Summa],Izd_mai[Kategorija],Izdevumu_kopsavilkums[Izdevumi]) -> 333.00 | G7: =SUMIFS(Izd_jūn[Summa],Izd_jūn[Kategorija],Izdevumu_kopsavilkums[Izdevumi]) -> 122.00 | H7: =SUMIFS(Izd_jūl[Summa],Izd_jūl[Kategorija],Izdevumu_kopsavilkums[Izdevumi]) -> 0.00 | I7: =SUMIFS(Izd_aug[Summa],Izd_aug[Kategorija],Izdevumu_kopsavilkums[Izdevumi]) -> 0.00 | J7: =SUMIFS(Izd_sep[Summa],Izd_sep[Kategorija],Izdevumu_kopsavilkums[Izdevumi]) -> 0.00 | K7: =SUMIFS(Izd_okt[Summa],Izd_okt[Kategorija],Izdevumu_kopsavilkums[Izdevumi]) -> 0.00 | L7: =SUMIFS(Izd_nov[Summa],Izd_nov[Kategorija],Izdevumu_kopsavilkums[Izdevumi]) -> 0.00 | M7: =SUMIFS(Izd_dec[Summa],Izd_dec[Kategorija],Izdevumu_kopsavilkums[Izdevumi]) -> 122.00 | N7: =SUM(Izdevumu_kopsavilkums[[#This Row],[Jan]:[Dec]]) -> 1,032.00
A8: Izdevumi_4 | B8: =SUMIFS(Izd_jan[Summa],Izd_jan[Kategorija],Izdevumu_kopsavilkums[Izdevumi]) -> 426.00 | C8: =SUMIFS(Izd_feb[Summa],Izd_feb[Kategorija],Izdevumu_kopsavilkums[Izdevumi]) -> 84.00 | D8: =SUMIFS(Izd_mar[Summa],Izd_mar[Kategorija],Izdevumu_kopsavilkums[Izdevumi]) -> 84.00 | E8: =SUMIFS(Izd_apr[Summa],Izd_apr[Kategorija],Izdevumu_kopsavilkums[Izdevumi]) -> 426.00 | F8: =SUMIFS(Izd_mai[Summa],Izd_mai[Kategorija],Izdevumu_kopsavilkums[Izdevumi]) -> 125.00 | G8: =SUMIFS(Izd_jūn[Summa],Izd_jūn[Kategorija],Izdevumu_kopsavilkums[Izdevumi]) -> 187.00 | H8: =SUMIFS(Izd_jūl[Summa],Izd_jūl[Kategorija],Izdevumu_kopsavilkums[Izdevumi]) -> 0.00 | I8: =SUMIFS(Izd_aug[Summa],Izd_aug[Kategorija],Izdevumu_kopsavilkums[Izdevumi]) -> 0.00 | J8: =SUMIFS(Izd_sep[Summa],Izd_sep[Kategorija],Izdevumu_kopsavilkums[Izdevumi]) -> 0.00 | K8: =SUMIFS(Izd_okt[Summa],Izd_okt[Kategorija],Izdevumu_kopsavilkums[Izdevumi]) -> 0.00 | L8: =SUMIFS(Izd_nov[Summa],Izd_nov[Kategorija],Izdevumu_kopsavilkums[Izdevumi]) -> 0.00 | M8: =SUMIFS(Izd_dec[Summa],Izd_dec[Kategorija],Izdevumu_kopsavilkums[Izdevumi]) -> 187.00 | N8: =SUM(Izdevumu_kopsavilkums[[#This Row],[Jan]:[Dec]]) -> 1,519.00
A9: Izdevumi_5 | B9: =SUMIFS(Izd_jan[Summa],Izd_jan[Kategorija],Izdevumu_kopsavilkums[Izdevumi]) -> 54.00 | C9: =SUMIFS(Izd_feb[Summa],Izd_feb[Kategorija],Izdevumu_kopsavilkums[Izdevumi]) -> 54.00 | D9: =SUMIFS(Izd_mar[Summa],Izd_mar[Kategorija],Izdevumu_kopsavilkums[Izdevumi]) -> 109.00 | E9: =SUMIFS(Izd_apr[Summa],Izd_apr[Kategorija],Izdevumu_kopsavilkums[Izdevumi]) -> 98.00 | F9: =SUMIFS(Izd_mai[Summa],Izd_mai[Kategorija],Izdevumu_kopsavilkums[Izdevumi]) -> 33.00 | G9: =SUMIFS(Izd_jūn[Summa],Izd_jūn[Kategorija],Izdevumu_kopsavilkums[Izdevumi]) -> 441.00 | H9: =SUMIFS(Izd_jūl[Summa],Izd_jūl[Kategorija],Izdevumu_kopsavilkums[Izdevumi]) -> 0.00 | I9: =SUMIFS(Izd_aug[Summa],Izd_aug[Kategorija],Izdevumu_kopsavilkums[Izdevumi]) -> 0.00 | J9: =SUMIFS(Izd_sep[Summa],Izd_sep[Kategorija],Izdevumu_kopsavilkums[Izdevumi]) -> 0.00 | K9: =SUMIFS(Izd_okt[Summa],Izd_okt[Kategorija],Izdevumu_kopsavilkums[Izdevumi]) -> 0.00 | L9: =SUMIFS(Izd_nov[Summa],Izd_nov[Kategorija],Izdevumu_kopsavilkums[Izdevumi]) -> 0.00 | M9: =SUMIFS(Izd_dec[Summa],Izd_dec[Kategorija],Izdevumu_kopsavilkums[Izdevumi]) -> 99.00 | N9: =SUM(Izdevumu_kopsavilkums[[#This Row],[Jan]:[Dec]]) -> 888.00
A10: Kopsumma | B10: =SUBTOTAL(109,Izdevumu_kopsavilkums[Jan]) -> 861.00 | C10: =SUBTOTAL(109,Izdevumu_kopsavilkums[Feb]) -> 861.00 | D10: =SUBTOTAL(109,Izdevumu_kopsavilkums[Mar]) -> 574.00 | E10: =SUBTOTAL(109,Izdevumu_kopsavilkums[Apr]) -> 817.00 | F10: =SUBTOTAL(109,Izdevumu_kopsavilkums[Mai]) -> 977.00 | G10: =SUBTOTAL(109,Izdevumu_kopsavilkums[Jūn]) -> 1,049.00 | H10: =SUBTOTAL(109,Izdevumu_kopsavilkums[Jūl]) -> 0.00 | I10: =SUBTOTAL(109,Izdevumu_kopsavilkums[Aug]) -> 0.00 | J10: =SUBTOTAL(109,Izdevumu_kopsavilkums[Sep]) -> 0.00 | K10: =SUBTOTAL(109,Izdevumu_kopsavilkums[Okt]) -> 0.00 | L10: =SUBTOTAL(109,Izdevumu_kopsavilkums[Nov]) -> 0.00 | M10: =SUBTOTAL(109,Izdevumu_kopsavilkums[Dec]) -> 1,049.00 | N10: =SUBTOTAL(109,Izdevumu_kopsavilkums[Kopsumma]) -> 6,188.00

Sheet jan
A1: JANVĀRA IZDEVUMI | D1: Kopsavilkums | E1: Padomi
A2: Datums | B2: Čeka numurs | C2: Summa | D2: Kategorija | E2: Apraksts
A3: =DATE(YEAR(TODAY()),1,4) -> 2017-01-04 | B3: A-12345 | C3: 33.00 | D3: Izdevumi_1 | E3: Materiāli
A4: =DATE(YEAR(TODAY()),1,5) -> 2017-01-05 | B4: A-12346 | C4: 238.00 | D4: Izdevumi_2
C5: 342.00 | D5: Izdevumi_4
C6: 110.00 | D6: Izdevumi_3
C7: 84.00 | D7: Izdevumi_4
C8: 54.00 | D8: Izdevumi_5
A9: Kopsumma | C9: =SUBTOTAL(109,Izd_jan[Summa]) -> 861.00

Sheet feb
A1: FEBRUĀRA IZDEVUMI | D1: Kopsavilkums | E1: Padomi
A2: Datums | B2: Čeka numurs | C2: Summa | D2: Kategorija | E2: Apraksts
A3: =DATE(YEAR(TODAY()),2,3) -> 2017-02-03 | B3: A-12345 | C3: 33.00 | D3: Izdevumi_1 | E3: Materiāli
A4: =DATE(YEAR(TODAY()),2,4) -> 2017-02-04 | B4: A-12346 | C4: 238.00 | D4: Izdevumi_2
C5: 342.00 | D5: Izdevumi_1
C6: 110.00 | D6: Izdevumi_3
C7: 84.00 | D7: Izdevumi_4
C8: 54.00 | D8: Izdevumi_5
A9: Kopsumma | C9: =SUBTOTAL(109,Izd_feb[Summa]) -> 861.00

Sheet mar
A1: MARTA IZDEVUMI | D1: Kopsavilkums | E1: Padomi
A2: Datums | B2: Čeka numurs | C2: Summa | D2: Kategorija | E2: Apraksts
A3: =DATE(YEAR(TODAY()),3,5) -> 2017-03-05 | B3: A-12345 | C3: 33.00 | D3: Izdevumi_1 | E3: Materiāli
A4: =DATE(YEAR(TODAY()),3,6) -> 2017-03-06 | B4: A-12346 | C4: 238.00 | D4: Izdevumi_2
C5: 55.00 | D5: Izdevumi_5
C6: 110.00 | D6: Izdevumi_3
C7: 84.00 | D7: Izdevumi_4
C8: 54.00 | D8: Izdevumi_5
A9: Kopsumma | C9: =SUBTOTAL(109,Izd_mar[Summa]) -> 574.00

Sheet apr
A1: APRĪĻA IZDEVUMI | D1: Kopsavilkums | E1: Padomi
A2: Datums | B2: Čeka numurs | C2: Summa | D2: Kategorija | E2: Apraksts
A3: =DATE(YEAR(TODAY()),4,4) -> 2017-04-04 | B3: A-12345 | C3: 45.00 | D3: Izdevumi_1 | E3: Materiāli
A4: =DATE(YEAR(TODAY()),4,8) -> 2017-04-08 | B4: A-12346 | C4: 123.00 | D4: Izdevumi_2
C5: 342.00 | D5: Izdevumi_4
C6: 125.00 | D6: Izdevumi_3
C7: 84.00 | D7: Izdevumi_4
C8: 98.00 | D8: Izdevumi_5
A9: Kopsumma | C9: =SUBTOTAL(109,Izd_apr[Summa]) -> 817.00

Sheet mai
A1: MAIJA IZDEVUMI | D1: Kopsavilkums | E1: Padomi
A2: Datums | B2: Čeka numurs | C2: Summa | D2: Kategorija | E2: Apraksts
A3: =DATE(YEAR(TODAY()),5,3) -> 2017-05-03 | B3: A-12345 | C3: 33.00 | D3: Izdevumi_1 | E3: Materiāli
A4: =DATE(YEAR(TODAY()),5,8) -> 2017-05-08 | B4: A-12346 | C4: 111.00 | D4: Izdevumi_2
C5: 342.00 | D5: Izdevumi_1
C6: 333.00 | D6: Izdevumi_3
C7: 125.00 | D7: Izdevumi_4
C8: 33.00 | D8: Izdevumi_5
A9: Kopsumma | C9: =SUBTOTAL(109,Izd_mai[Summa]) -> 977.00

Sheet jūn
A1: JŪNIJA IZDEVUMI | D1: Kopsavilkums | E1: Padomi
A2: Datums | B2: Čeka numurs | C2: Summa | D2: Kategorija | E2: Apraksts
A3: =DATE(YEAR(TODAY()),6,7) -> 2017-06-07 | B3: A-12345 | C3: 201.00 | D3: Izdevumi_1 | E3: Materiāli
A4: =DATE(YEAR(TODAY()),6,8) -> 2017-06-08 | B4: A-12346 | C4: 98.00 | D4: Izdevumi_2
C5: 342.00 | D5: Izdevumi_5
C6: 122.00 | D6: Izdevumi_3
C7: 187.00 | D7: Izdevumi_4
C8: 99.00 | D8: Izdevumi_5
A9: Kopsumma | C9: =SUBTOTAL(109,Izd_jūn[Summa]) -> 1,049.00

Sheet jūl
A1: JŪLIJA IZDEVUMI | D1: Kopsavilkums | E1: Padomi
A2: Datums | B2: Čeka numurs | C2: Summa | D2: Kategorija | E2: Apraksts
A3: =DATE(YEAR(TODAY()),7,9) -> 2017-07-09 | B3: A-12345 | D3: Izdevumi_1 | E3: Materiāli
A4: =DATE(YEAR(TODAY()),7,14) -> 2017-07-14 | B4: A-12346 | D4: Izdevumi_2
D5: Izdevumi_2
D6: Izdevumi_3
D7: Izdevumi_4
D8: Izdevumi_5
A9: Kopsumma | C9: =SUBTOTAL(109,Izd_jūl[Summa]) -> 0.00

Sheet aug
A1: AUGUSTA IZDEVUMI | D1: Kopsavilkums | E1: Padomi
A2: Datums | B2: Čeka numurs | C2: Summa | D2: Kategorija | E2: Apraksts
A3: =DATE(YEAR(TODAY()),8,8) -> 2017-08-08 | B3: A-12345 | D3: Izdevumi_1 | E3: Materiāli
A4: =DATE(YEAR(TODAY()),8,9) -> 2017-08-09 | B4: A-12346 | D4: Izdevumi_2
D5: Izdevumi_2
D6: Izdevumi_3
D7: Izdevumi_4
D8: Izdevumi_5
A9: Kopsumma | C9: =SUBTOTAL(109,Izd_aug[Summa]) -> 0.00

Sheet sep
A1: SEPTEMBRA IZDEVUMI | D1: Kopsavilkums | E1: Padomi
A2: Datums | B2: Čeka numurs | C2: Summa | D2: Kategorija | E2: Apraksts
A3: =DATE(YEAR(TODAY()),9,9) -> 2017-09-09 | B3: A-12345 | D3: Izdevumi_1 | E3: Materiāli
A4: =DATE(YEAR(TODAY()),9,15) -> 2017-09-15 | B4: A-12346 | D4: Izdevumi_2
D5: Izdevumi_2
D6: Izdevumi_3
D7: Izdevumi_4
D8: Izdevumi_5
A9: Kopsumma | C9: =SUBTOTAL(109,Izd_sep[Summa]) -> 0.00

Sheet okt
A1: OKTOBRA IZDEVUMI | D1: Kopsavilkums | E1: Padomi
A2: Datums | B2: Čeka numurs | C2: Summa | D2: Kategorija | E2: Apraksts
A3: =DATE(YEAR(TODAY()),10,10) -> 2017-10-10 | B3: A-12345 | D3: Izdevumi_1 | E3: Materiāli
A4: =DATE(YEAR(TODAY()),10,21) -> 2017-10-21 | B4: A-12346 | D4: Izdevumi_2
D5: Izdevumi_2
D6: Izdevumi_3
D7: Izdevumi_4
D8: Izdevumi_5
A9: Kopsumma | C9: =SUBTOTAL(109,Izd_okt[Summa]) -> 0.00

Sheet nov
A1: NOVEMBRA IZDEVUMI | D1: Kopsavilkums | E1: Padomi
A2: Datums | B2: Čeka numurs | C2: Summa | D2: Kategorija | E2: Apraksts
A3: =DATE(YEAR(TODAY()),11,14) -> 2017-11-14 | B3: A-12345 | D3: Izdevumi_1 | E3: Materiāli
A4: =DATE(YEAR(TODAY()),11,21) -> 2017-11-21 | B4: A-12346 | D4: Izdevumi_2
D5: Izdevumi_2
D6: Izdevumi_3
D7: Izdevumi_4
D8: Izdevumi_5
A9: Kopsumma | C9: =SUBTOTAL(109,Izd_nov[Summa]) -> 0.00

Sheet dec
A1: DECEMBRA IZDEVUMI | D1: Kopsavilkums | E1: Padomi
A2: Datums | B2: Čeka numurs | C2: Summa | D2: Kategorija | E2: Apraksts
A3: =DATE(YEAR(TODAY()),12,2) -> 2017-12-02 | B3: A-12345 | C3: 201.00 | D3: Izdevumi_1 | E3: Materiāli
A4: =DATE(YEAR(TODAY()),12,24) -> 2017-12-24 | B4: A-12346 | C4: 98.00 | D4: Izdevumi_2
C5: 342.00 | D5: Izdevumi_2
C6: 122.00 | D6: Izdevumi_3
C7: 187.00 | D7: Izdevumi_4
C8: 99.00 | D8: Izdevumi_5
A9: Kopsumma | C9: =SUBTOTAL(109,Izd_dec[Summa]) -> 1,049.00
